fUST/lending_fUST_20251003
["ID","MTS","AMOUNT","RATE_DAILY","PERIOD"]
[388884997,1759465460008,500.0,0.00018036,2]
[388884998,1759465460179,500.0,0.00018036,2]
[388884999,1759465461273,4379.33,0.00018034,2]
[388885000,1759465463897,168.0,0.00018026,2]
[388885001,1759465465099,740.94,0.00018036,2]
[388885002,1759465466178,612.59,0.00018036,2]
[388885003,1759465466461,500.0,0.00018036,2]
[388885004,1759465468571,505.85,0.00018036,2]
[388885005,1759465472451,3093.3,0.00018036,2]
[388885006,1759465472479,10000.01,0.00018036,2]
[388885007,1759465472509,5972.143576,0.00018036,2]
[388885008,1759465472930,500.0,0.00018036,2]
[388885009,1759465484905,-741.19,0.00018034,2]
[388885010,1759465484936,-500.0,0.00018036,2]
[388885011,1759465484966,-637.74,0.00018036,2]
[388885012,1759465484996,-1000.93060731,0.00018044,2]
[388885013,1759465485026,-355.0528281,0.00018045,2]
[388885014,1759465485055,-1418.79110107,0.00018045,2]
[388885015,1759465485083,-299.96922246,0.00018045,2]
[388885016,1759465485342,-1198.67701294,0.00018045,2]
[388885017,1759465485371,-529.10415449,0.00018045,2]
[388885018,1759465485399,-1000.0,0.00018045,2]
[388885019,1759465489451,-886.59,0.00018036,2]
[388885020,1759465491374,605.25,0.00018036,2]
[388885021,1759465493051,189.57898772,0.00018036,2]
[388885022,1759465493135,928.53,0.00018036,2]
[388885023,1759465493210,500.0,0.00018035,2]
[388885024,1759465494157,500.0,0.00018036,2]
[388885025,1759465497889,500.0,0.00018035,2]
[388885026,1759465499336,1128.75,0.00018036,2]
[388885027,1759465500355,500.0,0.00018036,2]
[388885028,1759465501625,2154.53,0.00018036,2]
[388885029,1759465503732,500.0,0.00018036,2]
[388885030,1759465504114,500.0,0.00018035,2]
[388885031,1759465504203,220.19101228,0.00018034,2]
[388885032,1759465504230,1681.22898772,0.00018034,2]
[388885033,1759465507876,749.1,0.00018034,2]
[388885034,1759465509520,500.0,0.00018036,2]
[388885035,1759465512271,823.55,0.00018036,2]
[388885036,1759465515070,500.0,0.00018036,2]
[388885037,1759465515585,500.0,0.00018036,2]
[388885038,1759465518497,500.0,0.00018036,2]
[388885039,1759465518991,1081.78,0.00018036,2]
[388885040,1759465521043,500.0,0.00018012,2]
[388885041,1759465525831,501.46477237,0.00018012,2]
[388885042,1759465528433,883.31,0.00018035,2]
[388885043,1759465530867,500.0,0.00018036,2]
[388885044,1759465536665,500.0,0.00018036,2]
[388885045,1759465537382,500.0,0.00018036,2]
[388885046,1759465540090,1247.01,0.00018036,2]
[388885047,1759465540899,521.21,0.00018036,2]
[388885048,1759465542666,-888.96,0.00018035,2]
[388885049,1759465543735,572.51,0.00018036,2]
[388885050,1759465545286,500.0,0.00018036,2]
[388885051,1759465547595,588.23,0.00018036,2]
[388885052,1759465552637,500.0,0.00018034,2]
[388885053,1759465553034,500.0,0.00018034,2]
[388885054,1759465553539,809.91,0.00018036,2]
[388885055,1759465554290,500.0,0.00018036,2]
[388885056,1759465554698,707.93,0.00018035,2]
[388885058,1759465562714,660.52,0.00018036,2]
[388885059,1759465563941,500.0,0.00018036,2]
[388885061,1759465566904,574.04,0.00018034,2]
[388885062,1759465571108,500.0,0.00018036,2]
[388885063,1759465574362,500.0,0.00018036,2]
[388885064,1759465575536,458.82900683,0.00018036,2]
[388885065,1759465575570,350.12099317,0.00018036,2]
[388885066,1759465575595,149.87900683,0.00018036,2]
[388885067,1759465576358,500.0,0.00018035,2]
[388885068,1759465579556,396.82811587,0.00018035,2]
[388885069,1759465580715,500.0,0.00018036,2]
[388885070,1759465581745,500.0,0.00018036,2]
[388885071,1759465583779,615.14,0.00018035,2]
[388885072,1759465584375,500.0,0.00018034,2]
[388885073,1759465584685,6838.1628773,0.00018036,2]
[388885074,1759465584713,732.9871227,0.00018036,2]
[388885075,1759465585161,500.0,0.00018036,2]
[388885076,1759465593356,500.0,0.00018036,2]
[388885077,1759465596191,500.0,0.00018036,2]
[388885078,1759465600874,4196.85,0.00018036,2]
[388885079,1759465605115,500.0,0.00018036,2]
[388885080,1759465605210,551.43,0.00018036,2]
[388885081,1759465614650,500.0,0.00018035,2]
[388885082,1759465614773,500.0,0.00018036,2]
[388885083,1759465619359,4463.97,0.00018036,2]
[388885084,1759465620168,810.27,0.00018036,2]
[388885085,1759465620726,500.0,0.00018036,2]
[388885086,1759465622775,1450.9,0.00018034,2]
[388885088,1759465628729,447.54473173,0.00018036,2]
[388885089,1759465637282,160.23830574,0.00017997,2]
[388885090,1759465640356,1167.08696253,0.00018036,2]
[388885091,1759465640383,376.31303747,0.00018036,2]
[388885092,1759465640527,930.05,0.00018036,2]
[388885093,1759465644206,500.0,0.00018036,2]
[388885094,1759465648114,500.0,0.00018036,2]
[388885095,1759465649586,500.0,0.00018036,2]
[388885096,1759465650424,500.0,0.00018036,2]
[388885097,1759465655033,500.0,0.00018036,2]
[388885098,1759465662569,169.0,0.00017599,2]
[388885099,1759465663140,751.32,0.00018036,2]
[388885100,1759465666606,685.61,0.00018036,2]
[388885101,1759465673057,1057.47,0.00018036,2]
[388885102,1759465676418,699.09,0.00018035,2]
[388885103,1759465677993,500.0,0.00018035,2]
[388885104,1759465678378,810.16,0.00018034,2]
[388885105,1759465684633,500.0,0.00018036,2]
[388885106,1759465692946,740.48,0.00018035,2]
[388885107,1759465701879,280.51696253,0.00018035,2]
[388885108,1759465701903,346.86303747,0.00018035,2]
[388885110,1759465705651,500.0,0.00018036,2]
[388885111,1759465706276,500.0,0.00018035,2]
[388885112,1759465707968,8239.8842618,0.00018,2]
[388885113,1759465714380,413.26270073,0.00015,2]
[388885114,1759465714404,10000.01,0.00015,2]
[388885115,1759465714431,1247.34022069,0.00015,2]
[388885116,1759465716033,587.07263162,0.000149,2]
[388885117,1759465719050,2987.71,0.00018034,2]
[388885118,1759465720940,2676.43,0.00018036,2]
[388885119,1759465723493,165.04515382,0.00017945,2]
[388885120,1759465724646,500.0,0.00018036,2]
[388885121,1759465727902,500.0,0.00018036,2]
[388885122,1759465731123,869.6,0.00018036,2]
[388885123,1759465731597,500.0,0.00018036,2]
[388885124,1759465737390,500.0,0.00018034,2]
[388885125,1759465738119,500.0,0.00018036,2]
[388885126,1759465741578,680.37,0.00018036,2]
[388885127,1759465742866,500.0,0.00018035,2]
[388885128,1759465745623,602.22,0.00018036,2]
[388885129,1759465747895,699.32,0.00018035,2]
[388885130,1759465750315,1856.38,0.00018036,2]
[388885131,1759465751287,1111.41,0.00018036,2]
[388885132,1759465753776,500.0,0.00018036,2]
[388885134,1759465761496,202.38,0.00022,120]
[388885135,1759465768047,150.0,0.00016872,7]
[388885136,1759465768845,154.37378439,0.00017189,7]
[388885137,1759465770597,-500.0,0.00018035,2]
[388885138,1759465770951,500.0,0.00018035,2]
[388885140,1759465782544,500.0,0.00018035,2]
[388885141,1759465786635,-500.0,0.00018036,2]
[388885142,1759465786666,-500.0,0.00018036,2]
[388885143,1759465786695,-621.22,0.00018036,2]
[388885144,1759465786723,-500.0,0.00018036,2]
[388885145,1759465795503,1390.45,0.00018036,2]
[388885146,1759465795983,500.0,0.00018036,2]
[388885147,1759465797942,500.0,0.00018036,2]
[388885148,1759465798350,500.0,0.00018035,2]
[388885149,1759465807375,734.69479998,0.00018036,2]
[388885150,1759465809274,500.0,0.00018036,2]
[388885151,1759465810397,1899.57,0.00018036,2]
[388885152,1759465814195,500.0,0.00018036,2]
[388885153,1759465818491,151.70491979,0.00018036,2]
[388885154,1759465818997,500.0,0.00018036,2]
[388885163,1759465832726,-297.6210869,0.00018045,2]
[388885164,1759465832736,-1000.0,0.00018045,2]
[388885165,1759465832745,-300.0,0.00018095,2]
[388885166,1759465832754,-239.0,0.00018095,2]
[388885167,1759465832763,-300.0,0.00018095,2]
[388885168,1759465832772,-300.0,0.00018095,2]
[388885169,1759465832782,-163.3789131,0.00018095,2]
[388885170,1759465832795,-1036.6210869,0.00018095,2]
[388885171,1759465832805,-300.0,0.00018095,2]
[388885172,1759465832815,-500.0,0.00018096,2]
[388885173,1759465832826,-500.0,0.00018096,2]
[388885174,1759465832835,-162.5789131,0.00018096,2]
[388885175,1759465832846,-961.1310869,0.00018096,2]
[388885176,1759465832855,-646.28,0.00018096,2]
[388885177,1759465832864,-1704.28,0.00018096,2]
[388885178,1759465832874,-500.0,0.00018096,2]
[388885179,1759465832883,-526.66,0.00018096,2]
[388885180,1759465832893,-500.0,0.00018096,2]
[388885181,1759465832903,-500.0,0.00018096,2]
[388885182,1759465832912,-500.0,0.00018096,2]
[388885183,1759465832921,-500.0,0.00018096,2]
[388885184,1759465832930,-500.0,0.00018096,2]
[388885185,1759465832939,-500.0,0.00018096,2]
[388885186,1759465832949,-500.0,0.00018096,2]
[388885187,1759465832958,-500.0,0.00018096,2]
[388885188,1759465832967,-240.85441835,0.00018096,2]
[388885189,1759465832976,-487.38830427,0.00018096,2]
[388885190,1759465832985,-500.0,0.00018096,2]
[388885191,1759465833193,-500.0,0.00018096,2]
[388885192,1759465833204,-500.0,0.00018096,2]
[388885193,1759465833213,-500.0,0.00018096,2]
[388885194,1759465833224,-500.0,0.00018096,2]
[388885195,1759465833234,-500.0,0.00018096,2]
[388885196,1759465833243,-500.0,0.00018096,2]
[388885197,1759465833253,-500.0,0.00018096,2]
[388885198,1759465833262,-500.0,0.00018096,2]
[388885199,1759465833272,-500.0,0.00018096,2]
[388885200,1759465833281,-500.0,0.00018096,2]
[388885201,1759465833291,-500.0,0.00018096,2]
[388885202,1759465833300,-500.0,0.00018096,2]
[388885203,1759465833309,-309.47743409,0.00018096,2]
[388885204,1759465833318,-500.0,0.00018096,2]
[388885205,1759465833327,-500.0,0.00018096,2]
[388885206,1759465833336,-500.0,0.00018096,2]
[388885207,1759465833346,-500.0,0.00018096,2]
[388885208,1759465833355,-500.0,0.00018096,2]
[388885209,1759465833365,-500.0,0.00018096,2]
[388885210,1759465833374,-500.0,0.00018096,2]
[388885211,1759465833383,-250.35371302,0.00018096,2]
[388885212,1759465833392,-249.11559487,0.00018096,2]
[388885213,1759465833403,-238.76701925,0.00018096,2]
[388885214,1759465833412,-500.0,0.00018096,2]
[388885215,1759465833422,-500.0,0.00018096,2]
[388885216,1759465833431,-500.0,0.00018096,2]
[388885217,1759465833440,-500.0,0.00018096,2]
[388885218,1759465833449,-500.0,0.00018096,2]
[388885219,1759465833459,-500.0,0.00018096,2]
[388885220,1759465833468,-22404.97628039,0.00018097,2]
[388885221,1759465833477,-500.0,0.00018097,2]
[388885222,1759465833486,-539.29,0.00018097,2]
[388885223,1759465833496,-500.0,0.00018097,2]
[388885224,1759465833506,-568.86741775,0.00018097,2]
[388885265,1759465835571,950.6,0.00018036,2]
[388885266,1759465836542,565.98,0.00018035,2]
[388885267,1759465839088,776.41,0.00018036,2]
[388885270,1759465840311,500.0,0.00018036,2]
[388885300,1759465844238,-500.0,0.00018096,2]
[388885301,1759465844248,-404.43670597,0.00018096,2]
[388885302,1759465845449,833.84,0.00018035,2]
[388885307,1759465851055,-95.56329403,0.00018096,2]
[388885308,1759465851064,-500.0,0.00018096,2]
[388885309,1759465851078,-64.29670608,0.00018096,2]
[388885310,1759465851458,500.0,0.00018036,2]
[388885311,1759465855122,500.0,0.00018036,2]
[388885312,1759465858242,840.75,0.00018035,2]
[388885313,1759465859533,730.29,0.00018036,2]
[388885314,1759465861296,500.0,0.00018036,2]
[388885315,1759465866680,500.0,0.00018036,2]
[388885316,1759465871584,925.0,0.00018035,2]
[388885317,1759465872394,168.0,0.00017852,2]
[388885318,1759465876262,2863.23,0.00018036,2]
[388885319,1759465877555,160.23830574,0.00017997,2]
[388885320,1759465881122,500.0,0.00018036,2]
[388885321,1759465885824,500.0,0.00018035,2]
[388885322,1759465890411,500.0,0.00018036,2]
[388885323,1759465896956,1098.61,0.00018036,2]
[388885324,1759465913050,500.0,0.00018036,2]
[388885325,1759465917169,609.67,0.00018035,2]
[388885326,1759465921888,500.0,0.00018036,2]
[388885327,1759465923714,908.57,0.00018036,2]
[388885328,1759465935205,500.0,0.00018035,2]
[388885329,1759465940772,500.0,0.00018036,2]
[388885330,1759465951780,500.0,0.00018035,2]
[388885331,1759465958663,502.29400012,0.00018035,2]
[388885332,1759465967256,918.58,0.00018036,2]
[388885333,1759465971235,1127.03788358,0.00017998,2]
[388885334,1759465972623,690.41,0.00018035,2]
[388885335,1759465977617,555.91925168,0.00018036,2]
[388885336,1759465981378,1753.48,0.00018035,2]
[388885337,1759465983076,500.0,0.00018035,2]
[388885338,1759465985273,500.0,0.00018035,2]
[388885339,1759465989458,500.0,0.00018035,2]
[388885340,1759465990261,500.0,0.00018036,2]
[388885341,1759465993206,500.0,0.00018036,2]
[388885342,1759465999029,500.0,0.00018036,2]
[388885343,1759466006371,452.28886462,0.00018035,2]
[388885344,1759466006395,47.71113538,0.00018035,2]
[388885345,1759466007829,1158.4,0.00018036,2]
[388885346,1759466008097,500.0,0.00018036,2]
[388885347,1759466011703,533.55,0.00018035,2]
[388885348,1759466016665,267.44152562,0.00018036,2]
[388885349,1759466017929,606.87,0.00018035,2]
[388885350,1759466018824,500.0,0.00018036,2]
[388885351,1759466026419,500.0,0.00018036,2]
[388885352,1759466028719,815.949049,0.00028767,120]
[388885353,1759466030033,500.0,0.00018035,2]
[388885354,1759466032099,500.0,0.00018035,2]
[388885355,1759466033288,500.0,0.00018035,2]
[388885356,1759466040614,500.0,0.00018035,2]
[388885357,1759466043776,500.0,0.00018036,2]
[388885358,1759466044025,500.0,0.00018036,2]
[388885360,1759466057211,500.0,0.00018036,2]
[388885361,1759466059461,500.0,0.00018036,2]
[388885362,1759466069727,500.0,0.00018036,2]
[388885363,1759466072583,500.0,0.00018035,2]
[388885364,1759466072833,500.0,0.00018036,2]
[388885365,1759466074426,386.037339,0.00018036,2]
[388885366,1759466074452,113.962661,0.00018036,2]
[388885367,1759466074899,168.0,0.00017887,2]
[388885368,1759466077198,500.0,0.00018035,2]
[388885369,1759466083121,500.0,0.00018035,2]
[388885370,1759466083600,500.0,0.00018036,2]
[388885371,1759466084530,500.0,0.00018036,2]
[388885372,1759466090844,500.0,0.00018036,2]
[388885373,1759466091337,500.0,0.00018035,2]
[388885374,1759466096234,500.0,0.00018036,2]
[388885375,1759466109699,160.23830574,0.00017996,2]
[388885376,1759466109738,500.0,0.00018036,2]
[388885377,1759466112925,500.0,0.00018036,2]
[388885378,1759466115013,500.0,0.00018035,2]
[388885379,1759466116301,500.0,0.00018035,2]
[388885380,1759466121145,500.0,0.00018036,2]
[388885381,1759466126705,526.9,0.00018036,2]
[388885382,1759466129978,500.0,0.00018036,2]
[388885383,1759466131270,710.39,0.00018036,2]
[388885384,1759466131622,500.0,0.00018035,2]
[388885385,1759466222593,300.0,0.00018034,2]
[388885386,1759466229119,-2064.75,0.00018035,2]
[388885387,1759466229151,-500.0,0.00018035,2]
[388885388,1759466229183,-500.0,0.00018035,2]
[388885389,1759466229216,-500.0,0.00018035,2]
[388885390,1759466229250,-548.66,0.00018035,2]
[388885391,1759466229283,-633.0,0.00018035,2]
[388885392,1759466229318,-7.19,0.00018035,2]
[388885393,1759466233011,-492.81,0.00018035,2]
[388885394,1759466233043,-500.0,0.00018035,2]
[388885395,1759466233072,-500.0,0.00018036,2]
[388885396,1759466233101,-500.0,0.00018036,2]
[388885397,1759466233130,-500.0,0.00018036,2]
[388885398,1759466233159,-500.0,0.00018036,2]
[388885399,1759466233188,-545.89,0.00018036,2]
[388885400,1759466233218,-500.0,0.00018036,2]
[388885401,1759466233247,-649.51,0.00018036,2]
[388885402,1759466233277,-25.47,0.00018036,2]
[388885403,1759466237050,-528.45,0.00018035,2]
[388885404,1759466237081,-572.65,0.00018036,2]
[388885405,1759466237115,-500.0,0.00018036,2]
[388885406,1759466241428,710.07,0.00018036,2]
[388885407,1759466245760,500.0,0.00018035,2]
[388885408,1759466249410,500.0,0.00018036,2]
[388885409,1759466251532,500.0,0.00018036,2]
[388885410,1759466252411,5000.0,0.00018041,2]
[388885411,1759466260426,500.0,0.00018036,2]
[388885412,1759466269995,736.83,0.00018036,2]
[388885413,1759466272521,168.0,0.00017661,2]
[388885414,1759466275597,168.0,0.00017701,2]
[388885415,1759466292178,229.590071,0.00017095,2]
[388885416,1759466311661,901.63030684,0.00017996,2]
[388885417,1759466326147,160.23830574,0.00017994,2]
[388885418,1759466402073,300.0,0.00018034,2]
[388885419,1759466402197,1200.0,0.00018034,2]
[388885420,1759466402319,300.0,0.00018034,2]
[388885421,1759466405775,8200.01,0.00017996,2]
[388885422,1759466405802,10000.01,0.00017996,2]
[388885423,1759466405829,1900.71167411,0.00017996,2]
[388885424,1759466407858,-500.0,0.00018035,2]
[388885425,1759466407890,-500.0,0.00018035,2]
[388885426,1759466407922,-1000.0,0.00018035,2]
[388885427,1759466407955,-500.0,0.00018035,2]
[388885428,1759466409695,500.0,0.00018035,2]
[388885429,1759466419564,910.99,0.00018035,2]
[388885430,1759466423885,-500.0,0.00018036,2]
[388885431,1759466423918,-500.0,0.00018036,2]
[388885432,1759466423949,-500.0,0.00018036,2]
[388885433,1759466423981,-500.0,0.00018036,2]
[388885434,1759466424015,-500.0,0.00018036,2]
[388885435,1759466424046,-500.0,0.00018036,2]
[388885436,1759466424079,-500.0,0.00018036,2]
[388885437,1759466424113,-500.0,0.00018036,2]
[388885438,1759466433270,500.0,0.00018035,2]
[388885439,1759466449146,613.6,0.00018036,2]
[388885440,1759466464043,500.0,0.00018012,2]
[388885441,1759466464879,151.404001,0.000245,30]
[388885442,1759466468498,1081.72,0.00018036,2]
[388885443,1759466468900,500.0,0.00018012,2]
[388885444,1759466477180,168.0,0.00017789,2]
[388885445,1759466484988,154.478799,0.00025,30]
[388885446,1759466485352,154.478799,0.00025,30]
[388885447,1759466485653,154.478799,0.00025,30]
[388885448,1759466518756,500.0,0.00018036,2]
[388885449,1759466534975,157.08345345,0.00017993,2]
[388885450,1759466559259,500.0,0.00018036,2]
[388885451,1759466570446,5979.60654655,0.00017995,2]
[388885452,1759466570471,10000.01,0.00017995,2]
[388885453,1759466570499,4020.40345345,0.00017995,2]
[388885454,1759466584119,776.51,0.00018036,2]
[388885455,1759466614081,500.0,0.00018036,2]
[388885456,1759466653112,721.30424548,0.00017995,2]
[388885457,1759466664075,10000.01,0.00018,2]
[388885458,1759466664104,10000.01,0.00018,2]
[388885459,1759466664131,10000.01,0.00018,2]
[388885460,1759466664160,70441.17327566,0.00018,2]
[388885461,1759466670177,168.0,0.0001773,2]
[388885462,1759466674701,168.0,0.00017828,2]
[388885463,1759466733322,837.081105,0.00017085,2]
[388885464,1759466772902,1428.8930646,0.00017957,2]
[388885465,1759466799094,157.08345345,0.00017992,2]
[388885487,1759466982351,6024.46940256,0.00017998,2]
[388885488,1759466995530,577.0433964,0.00017992,2]
[388885502,1759467031959,-577.04339637,0.00018062,2]
[388885503,1759467031968,-1000.0,0.00018062,2]
[388885504,1759467031978,-285.00508792,0.00018063,2]
[388885505,1759467031988,-300.0,0.00018072,2]
[388885506,1759467031998,-300.0,0.00018072,2]
[388885507,1759467032007,-1200.0,0.00018072,2]
[388885508,1759467032018,-1200.0,0.00018073,2]
[388885509,1759467032031,-2774.0591193,0.00018074,2]
[388885510,1759467032041,-3735.4779566,0.00018074,2]
[388885511,1759467032051,-874.14,0.00018083,3]
[388885512,1759467032061,-667.11,0.00018083,3]
[388885513,1759467032071,-333.56,0.00018083,3]
[388885514,1759467032080,-166.78,0.00018083,3]
[388885515,1759467032090,-200.63,0.00018083,3]
[388885516,1759467032100,-601.92,0.00018083,3]
[388885518,1759467032109,-500.0,0.00018084,2]
[388885520,1759467032119,-500.0,0.00018084,2]
[388885522,1759467032128,-500.0,0.00018084,2]
[388885524,1759467032138,-282.89846301,0.00018084,2]
[388885526,1759467032148,-193.4282687,0.00018084,2]
[388885528,1759467032158,-472.12395499,0.00018084,2]
[388885530,1759467032167,-500.0,0.00018084,2]
[388885532,1759467032176,-500.0,0.00018084,2]
[388885534,1759467032185,-201.05304823,0.00018084,2]
[388885536,1759467032195,-248.75189103,0.00018084,2]
[388885538,1759467032204,-500.0,0.00018084,2]
[388885539,1759467032215,-305.594857,0.00018084,2]
[388885540,1759467032224,-500.0,0.00018084,2]
[388885541,1759467032233,-500.0,0.00018084,2]
[388885542,1759467032242,-500.0,0.00018084,2]
[388885543,1759467032252,-1164.78,0.00018084,2]
[388885544,1759467032262,-1929.59,0.00018084,2]
[388885545,1759467032273,-500.0,0.00018084,2]
[388885546,1759467032282,-573.07,0.00018084,2]
[388885547,1759467032292,-709.48,0.00018084,2]
[388885548,1759467032302,-500.0,0.00018084,2]
[388885549,1759467032311,-500.0,0.00018084,2]
[388885550,1759467032320,-500.0,0.00018084,2]
[388885551,1759467032331,-2946.85,0.00018084,2]
[388885552,1759467032340,-5549.00015606,0.00018085,2]
[388885633,1759467043083,-500.0,0.00018084,2]
[388885634,1759467043093,-502.96079391,0.00018084,2]
[388885635,1759467043103,-500.0,0.00018084,2]
[388885636,1759467043113,-1830.82,0.00018084,2]
[388885637,1759467043122,-3709.85920609,0.00018085,2]
[388885686,1759467062593,151.404001,0.000245,30]
[388885687,1759467068120,267.0,0.00017559,2]
[388885688,1759467083200,154.478799,0.00025,30]
[388885705,1759467242505,177.54427484,0.00017994,2]
[388885706,1759467242556,4016.31293504,0.00018006,2]
[388885707,1759467333712,346.22603783,0.00017985,2]
[388885708,1759467352534,151.0,0.00025999,60]
[388885709,1759467417914,1486.46,0.00025999,60]
[388885710,1759467457953,319.0,0.00017785,2]
[388885711,1759467472528,319.0,0.00017621,2]
[388885712,1759467478151,319.0,0.00017785,2]
[388885713,1759467487114,319.0,0.00017587,2]
[388885714,1759467492509,319.0,0.00017871,2]
[388885715,1759467500782,475.0,0.00017997,2]
[388885716,1759467502800,2545.88335589,0.00017996,2]
[388885717,1759467502824,131.65860079,0.00017996,2]
[388885718,1759467505664,475.0,0.00017916,2]
[388885719,1759467510864,475.0,0.00017953,2]
[388885721,1759467675053,276.98083028,0.00017984,2]
[388885722,1759467684198,154.478799,0.00025,30]
[388885723,1759467704893,666.0,0.00017076,2]
[388885724,1759467763126,1785.02797112,0.00017996,2]
[388885725,1759467876802,1425.0,0.00016438,2]
[388885729,1759468015285,221.5846642,0.00017982,2]
[388885730,1759468023448,1190.01864742,0.00017993,2]
[388885731,1759468103533,159.0,0.000287,120]
[388885732,1759468158418,2158.79839115,0.00021921,30]
[388885734,1759468188463,2158.79839115,0.00021921,30]
[388885746,1759468232096,-221.5846642,0.00018051,2]
[388885747,1759468232105,-1000.0,0.00018055,2]
[388885748,1759468232114,-213.75381594,0.00018061,2]
[388885749,1759468232124,-275.0,0.00018071,2]
[388885750,1759468232133,-300.0,0.00018071,2]
[388885751,1759468232142,-1200.0,0.00018071,2]
[388885752,1759468232151,-300.0,0.00018071,2]
[388885753,1759468232161,-1785.95,0.00018072,3]
[388885754,1759468232170,-892.98,0.00018072,3]
[388885755,1759468232179,-446.49,0.00018072,3]
[388885756,1759468232189,-223.24,0.00018072,3]
[388885757,1759468232198,-669.76,0.00018072,3]
[388885758,1759468232207,-428.89858044,0.00018073,2]
[388885759,1759468232217,-1000.0,0.00018073,2]
[388885760,1759468232226,-1000.0,0.00018073,2]
[388885761,1759468232236,-339.6512173,0.00018073,2]
[388885892,1759468238089,-698.30299436,0.00018073,2]
[388885893,1759468238099,-500.0,0.00018073,2]
[388885894,1759468238110,-500.0,0.00018073,2]
[388885895,1759468238119,-500.0,0.00018073,2]
[388885896,1759468238129,-405.08717003,0.00018073,2]
[388885897,1759468238141,-94.91282997,0.00018073,2]
[388885898,1759468238151,-500.0,0.00018073,2]
[388885899,1759468238161,-166.0,0.00018073,2]
[388885900,1759468238170,-558.48569873,0.00018074,2]
[388886347,1759468243105,-641.51430127,0.00018074,2]
[388886349,1759468243115,-500.0,0.00018075,2]
[388886351,1759468243125,-500.0,0.00018075,2]
[388886353,1759468243134,-500.0,0.00018075,2]
[388886355,1759468243144,-500.0,0.00018075,2]
[388886357,1759468243153,-500.0,0.00018075,2]
[388886359,1759468243162,-500.0,0.00018075,2]
[388886361,1759468243171,-183.79620454,0.00018075,2]
[388886364,1759468243182,-316.20379546,0.00018075,2]
[388886366,1759468243191,-115.88074832,0.00018075,2]
[388886681,1759468283680,793.34576494,0.00017993,2]
[388886682,1759468353553,166.18849815,0.00017982,2]
[388886683,1759468544051,528.89717664,0.00017985,2]
[388886687,1759468689773,166.18849815,0.00017975,2]
[388886688,1759468804176,352.59811776,0.00017984,2]
[388886696,1759469028818,166.18849815,0.00017973,2]
[388886697,1759469064440,235.06541184,0.00017982,2]
[388886721,1759469277911,183.672056,0.0001707,2]
[388886723,1759469295802,157.08345345,0.0001797,2]
[388886724,1759469310973,168.0,0.00017866,2]
[388886727,1759469324726,235.06541182,0.00017982,2]